[Event "7th Leer Open-B 2024"]
[Site "Leer"]
[Date "2024.10.31"]
[Round "2.17"]
[White "Goerzen, Lina"]
[Black "Rabe, Elina"]
[Result "1-0"]
[ECO "C44"]
[WhiteElo "1667"]
[BlackElo "1515"]
[Annotator "NA COMBH"]
[PlyCount "51"]
[EventDate "2024.10.14"]
[EventType "swiss"]
[EventCountry "GER"]
[SourceTitle "playchess.com"]
[Source "ChessBase"]
[SourceQuality "1"]
[TimeControl "40/5400+30:900+30"]

1. e4 {[%emt 0:00:04]} e5 {[%emt 0:00:03]} 2. Nf3 {[%emt 0:00:06]} Nc6 {[%emt 0:00:05]} 3. d4 {[%emt 0:00:05]} exd4 {[%emt 0:00:38]} 4. Bc4 {[%emt 0:00:10]} Bb4+ {[%emt 0:05:06]} 5. c3 {[%emt 0:00:14]} dxc3 {[%emt 0:00:39]} 6. O-O {[%emt 0:00:50]} cxb2 {[%emt 0:00:51]} 7. Bxb2 {[%emt 0:00:08]} Nf6 {[%emt 0:00:37]} 8. e5 {[%emt 0:03:10]} Ne4 {[%emt 0:04:36]} 9. Qd5 {[%emt 0:04:01]} O-O {[%emt 0:04:55]} 10. Qxe4 {[%emt 0:00:37]} Re8 {[%emt 0:00:14]} 11. a3 {[%emt 0:01:35]} Ba5 {[%emt 0:00:52]} 12. Nc3 {[%emt 0:03:06]} d6 {[%emt 0:01:13]} 13. Qf4 {[%emt 0:04:52]} Nxe5 {[%emt 0:04:21]} 14. Nxe5 {[%emt 0:00:29]} Rxe5 {[%emt 0:00:18]} 15. Qxf7+ {[%emt 0:00:38]} Kh8 {[%emt 0:00:08]} 16. Ne4 {[%emt 0:01:24]} Qe8 {[%emt 0:07:49]} 17. Ng5 {[%emt 0:04:59]} Be6 {[%emt 0:08:54]} 18. Bxe6 {[%emt 0:02:08]} Rxg5 {[%emt 0:00:35]} 19. Rad1 {[%emt 0:08:33]} Qc6 {[%emt 0:07:00]} 20. Rd5 {[%emt 0:06:03]} Rg6 {[%emt 0:03:52]} 21. g3 {[%emt 0:10:09]} Qe8 {[%emt 0:06:25]} 22. Qxe8+ {[%emt 0:01:45]} Rxe8 {[%emt 0:00:02]} 23. Bf7 {[%emt 0:00:29]} Re2 {[%emt 0:01:37]} 24. Bxg6 {[%emt 0:01:32]} Rxb2 {[%emt 0:00:11]} 25. Rxa5 {[%emt 0:01:11]} hxg6 {[%emt 0:00:03] Check Result:7.27} 26. Rxa7 {[%emt 0:00:13]} 1-0

[Event "7th Leer Open-B 2024"]
[Site "Leer"]
[Date "2024.10.31"]
[Round "2.18"]
[White "Junge, Julia Marie"]
[Black "Heeren, Ragnar"]
[Result "1-0"]
[ECO "C50"]
[WhiteElo "1625"]
[BlackElo "1503"]
[Annotator "NA COMBH"]
[PlyCount "63"]
[EventDate "2024.10.14"]
[EventType "swiss"]
[EventCountry "GER"]
[SourceTitle "playchess.com"]
[Source "ChessBase"]
[SourceQuality "1"]
[TimeControl "40/5400+30:900+30"]

1. e4 {[%emt 0:00:03]} e5 {[%emt 0:00:09]} 2. Nf3 {[%emt 0:00:05]} Nc6 {[%emt 0:00:10]} 3. d4 {[%emt 0:00:04]} d6 {[%emt 1:31:41]} 4. Bc4 {[%emt 0:00:35]} Be6 {[%emt 0:00:00]} 5. d5 {[%emt 0:00:07]} Bd7 {[%emt 0:00:00]} 6. dxc6 {[%emt 0:00:06]} Bxc6 {[%emt 0:00:00]} 7. Nc3 {[%emt 0:00:19]} Nf6 {[%emt 0:00:00]} 8. Ng5 {[%emt 0:00:28]} Qd7 {[%emt 0:00:00]} 9. Nxf7 {[%emt 0:00:24]} Rg8 {[%emt 0:00:00]} 10. Ng5 {[%emt 0:00:50]} Rh8 {[%emt 0:00:00]} 11. O-O {[%emt 0:02:16]} O-O-O {[%emt 0:00:00]} 12. Be6 {[%emt 0:00:06]} Kb8 {[%emt 0:00:00]} 13. Bxd7 {[%emt 0:00:07]} Bxd7 {[%emt 0:00:00]} 14. Nf7 {[%emt 0:00:06]} Be7 {[%emt 0:00:00]} 15. Nxh8 {[%emt 0:00:13]} Rxh8 {[%emt 0:00:00]} 16. Nd5 {[%emt 1:32:41]} Nxd5 {[%emt 0:00:00]} 17. exd5 {[%emt 0:00:00]} Rf8 {[%emt 0:00:00]} 18. f4 {[%emt 0:00:00]} exf4 {[%emt 0:00:00]} 19. Rxf4 {[%emt 0:00:00]} Re8 {[%emt 0:00:00]} 20. Qh5 {[%emt 0:00:00]} g6 {[%emt 0:00:00]} 21. Qxh7 {[%emt 0:00:00]} a6 {[%emt 0:00:00]} 22. Rf7 {[%emt 0:00:00]} Bf5 {[%emt 0:00:00]} 23. Rxe7 {[%emt 0:00:00]} Rc8 {[%emt 0:00:00]} 24. Bf4 {[%emt 0:00:00]} Ka7 {[%emt 0:00:00]} 25. Bxd6 {[%emt 0:00:00]} Kb6 {[%emt 0:00:00]} 26. Bxc7+ {[%emt 0:00:00]} Kc5 {[%emt 0:00:00]} 27. d6 {[%emt 0:00:00]} Ra8 {[%emt 0:00:00]} 28. Rd1 {[%emt 0:00:00]} Bxc2 {[%emt 0:00:00]} 29. Bb6+ {[%emt 0:00:00]} Kxb6 {[%emt 0:00:00]} 30. Rxb7+ {[%emt 0:00:00]} Ka5 {[%emt 0:00:00]} 31. Qc7+ {[%emt 0:00:00]} Ka4 {[%emt 0:00:00] Check Result:?ev?} 32. Rd4# {[%emt 0:00:00]} 1-0

[Event "7th Leer Open-B 2024"]
[Site "Leer"]
[Date "2024.10.31"]
[Round "2.19"]
[White "Lauenstein, Nico"]
[Black "Demiroers, Emre"]
[Result "1-0"]
[ECO "B48"]
[WhiteElo "1732"]
[BlackElo "1614"]
[Annotator "NA COMBH"]
[PlyCount "117"]
[EventDate "2024.10.14"]
[EventType "swiss"]
[EventCountry "GER"]
[SourceTitle "playchess.com"]
[Source "ChessBase"]
[SourceQuality "1"]
[TimeControl "40/5400+30:900+30"]

1. e4 {[%emt 0:00:02]} c5 {[%emt 0:00:16]} 2. Nf3 {[%emt 0:00:08]} e6 {[%emt 0:00:16]} 3. d4 {[%emt 0:00:05]} cxd4 {[%emt 0:00:10]} 4. Nxd4 {[%emt 0:00:11]} Nc6 {[%emt 0:00:11]} 5. Nc3 {[%emt 0:00:04]} Qc7 {[%emt 0:00:05]} 6. Be3 {[%emt 0:00:23]} a6 {[%emt 0:00:09]} 7. Qd2 {[%emt 0:00:48]} Nf6 {[%emt 0:00:52]} 8. O-O-O {[%emt 0:01:59]} Bb4 {[%emt 0:02:25]} 9. f3 {[%emt 0:01:26]} d5 {[%emt 0:00:31]} 10. Nxc6 {[%emt 0:06:12]} bxc6 {[%emt 0:04:23]} 11. a3 {[%emt 0:01:08]} Ba5 {[%emt 0:02:00]} 12. b4 {[%emt 0:09:45]} Bb6 {[%emt 0:02:18]} 13. Bxb6 {[%emt 0:00:24]} Qxb6 {[%emt 0:00:06]} 14. exd5 {[%emt 0:02:50]} cxd5 {[%emt 0:00:19]} 15. Qd4 {[%emt 0:00:23]} Qxd4 {[%emt 0:01:50]} 16. Rxd4 {[%emt 0:00:02]} Bd7 {[%emt 0:02:49]} 17. Rd2 {[%emt 0:05:23]} Ke7 {[%emt 0:01:05]} 18. Be2 {[%emt 0:00:36]} Rhc8 {[%emt 0:00:26]} 19. Kb2 {[%emt 0:00:17]} Ne8 {[%emt 0:00:45]} 20. Re1 {[%emt 0:04:06]} Kf6 {[%emt 0:02:48]} 21. Nd1 {[%emt 0:00:48]} Bb5 {[%emt 0:01:05]} 22. Ne3 {[%emt 0:02:21]} Nd6 {[%emt 0:01:07]} 23. Kb3 {[%emt 0:03:56]} Bxe2 {[%emt 0:03:22]} 24. Rexe2 {[%emt 0:00:11]} h5 {[%emt 0:05:42]} 25. a4 {[%emt 0:05:53]} Rab8 {[%emt 0:04:37]} 26. Rd4 {[%emt 0:01:29]} Rb7 {[%emt 0:10:58]} 27. c4 {[%emt 0:02:29]} Nxc4 {[%emt 0:01:05]} 28. Nxc4 {[%emt 0:00:09]} dxc4+ {[%emt 0:00:14]} 29. Rxc4 {[%emt 0:00:07]} Rd8 {[%emt 0:08:23]} 30. Rc6 {[%emt 0:04:19]} Rd4 {[%emt 0:00:49]} 31. Rc4 {[%emt 0:02:08]} Rd3+ {[%emt 0:01:11]} 32. Rc3 {[%emt 0:00:34]} Rd4 {[%emt 0:00:08]} 33. Rc4 {[%emt 0:00:02]} Rd3+ {[%emt 0:00:31]} 34. Kb2 {[%emt 0:00:28]} Rd6 {[%emt 0:01:20]} 35. Rec2 {[%emt 0:00:10]} Rdb6 {[%emt 0:00:12]} 36. Ka3 {[%emt 0:00:10]} e5 {[%emt 0:03:04]} 37. Rc6+ {[%emt 0:00:53]} Kg5 {[%emt 0:02:00]} 38. Rxb6 {[%emt 0:00:20]} Rxb6 {[%emt 0:00:01]} 39. Rc5 {[%emt 0:00:22]} f6 {[%emt 0:01:01]} 40. b5 {[%emt 0:00:15]} axb5 {[%emt 0:00:29]} 41. axb5 {[%emt 0:15:03]} Kf5 {[%emt 0:16:40]} 42. Kb4 {[%emt 0:00:11]} g5 {[%emt 0:01:01]} 43. Rc6 {[%emt 0:00:50]} Rb8 {[%emt 0:00:12]} 44. Kc5 {[%emt 0:00:22]} g4 {[%emt 0:00:21]} 45. b6 {[%emt 0:00:49]} gxf3 {[%emt 0:04:13]} 46. gxf3 {[%emt 0:00:12]} h4 {[%emt 0:02:21]} 47. Kd6 {[%emt 0:01:56]} Kf4 {[%emt 0:00:35]} 48. Kc7 {[%emt 0:00:14]} Rxb6 {[%emt 0:00:54]} 49. Kxb6 {[%emt 0:00:49]} Kxf3 {[%emt 0:00:18]} 50. Rc3+ {[%emt 0:02:20]} Ke2 {[%emt 0:02:28]} 51. Kc5 {[%emt 0:00:16]} e4 {[%emt 0:00:22]} 52. Kd4 {[%emt 0:00:11]} f5 {[%emt 0:00:07]} 53. Rc5 {[%emt 0:03:51]} e3 {[%emt 0:01:00]} 54. Rc3 {[%emt 0:01:49]} f4 {[%emt 0:00:06]} 55. Ke4 {[%emt 0:00:05]} Kd2 {[%emt 0:00:09]} 56. Ra3 {[%emt 0:00:11]} h3 {[%emt 0:09:36]} 57. Kf3 {[%emt 0:02:33]} Kd1 {[%emt 0:05:08]} 58. Ra2 {[%emt 0:00:09]} Ke1 {[%emt 0:01:33] Check Result:#8} 59. Rb2 {[%emt 0:00:23]} 1-0

[Event "7th Leer Open-B 2024"]
[Site "Leer"]
[Date "2024.10.31"]
[Round "2.19"]
[White "Mallek, Peter"]
[Black "Lueders Vega, Iago Ernst"]
[Result "0-1"]
[ECO "C50"]
[WhiteElo "1491"]
[BlackElo "1578"]
[Annotator "NA COMBH"]
[PlyCount "42"]
[EventDate "2024.10.14"]
[EventType "swiss"]
[EventCountry "GER"]
[SourceTitle "playchess.com"]
[Source "ChessBase"]
[SourceQuality "1"]
[TimeControl "40/5400+30:900+30"]

1. e4 {[%emt 0:00:05]} e5 {[%emt 0:00:07]} 2. Nf3 {[%emt 0:00:13]} Nc6 {[%emt 0:00:04]} 3. Bc4 {[%emt 0:00:21]} Nf6 {[%emt 0:00:06]} 4. d3 {[%emt 0:00:16]} Bc5 {[%emt 0:00:11]} 5. Bg5 {[%emt 0:01:03]} h6 {[%emt 0:00:18]} 6. Bh4 {[%emt 0:00:39]} g5 {[%emt 0:00:11]} 7. Bg3 {[%emt 0:00:12]} d6 {[%emt 0:00:07]} 8. Nc3 {[%emt 0:05:00]} Be6 {[%emt 0:00:20]} 9. Nd5 {[%emt 0:02:47]} Bxd5 {[%emt 1:33:36]} 10. Bxd5 {[%emt 0:02:05]} Qd7 {[%emt 0:00:00]} 11. O-O {[%emt 0:05:45]} O-O-O {[%emt 0:00:00]} 12. c3 {[%emt 0:07:21]} Rdg8 {[%emt 0:00:00]} 13. Qb3 {[%emt 0:07:37]} h5 {[%emt 0:00:00]} 14. Bxf7 {[%emt 0:03:00]} Nd8 {[%emt 0:00:00]} 15. Bxg8 {[%emt 0:01:18]} Rxg8 {[%emt 0:00:00]} 16. h3 {[%emt 0:08:21]} g4 {[%emt 0:00:00]} 17. hxg4 {[%emt 0:01:34]} Qxg4 {[%emt 0:00:00]} 18. Qc2 {[%emt 0:08:23]} Qxg3 {[%emt 0:00:00]} 19. Nh4 {[%emt 0:02:48]} Ng4 {[%emt 0:00:00]} 20. Nf3 {[%emt 0:05:24]} Nh2 {[%emt 0:00:00]} 21. Ne1 {[%emt 0:04:41] Check Result:-#1} Nf3+ {[%emt 0:00:00]} 0-1

[Event "7th Leer Open-B 2024"]
[Site "Leer"]
[Date "2024.10.31"]
[Round "2.20"]
[White "Schlueter, Ulrike"]
[Black "Wilting, Oskar"]
[Result "1-0"]
[ECO "D06"]
[WhiteElo "1647"]
[BlackElo "1490"]
[Annotator "NA COMBH"]
[PlyCount "55"]
[EventDate "2024.10.14"]
[EventType "swiss"]
[EventCountry "GER"]
[SourceTitle "playchess.com"]
[Source "ChessBase"]
[SourceQuality "1"]
[TimeControl "40/5400+30:900+30"]

1. d4 {[%emt 0:02:35]} d5 {[%emt 0:00:10]} 2. c4 {[%emt 0:00:13]} Nf6 {[%emt 0:00:27]} 3. cxd5 {[%emt 0:00:13]} Nxd5 {[%emt 0:00:09]} 4. e4 {[%emt 0:00:05]} Nf6 {[%emt 0:00:15]} 5. Nc3 {[%emt 0:00:29]} Nc6 {[%emt 0:00:20]} 6. Bb5 {[%emt 0:01:01]} Bd7 {[%emt 0:00:23]} 7. Nf3 {[%emt 0:01:55]} e6 {[%emt 0:00:44]} 8. Bg5 {[%emt 0:01:19]} Be7 {[%emt 0:01:01]} 9. O-O {[%emt 0:02:38]} O-O {[%emt 0:01:18]} 10. Rc1 {[%emt 0:07:47]} a6 {[%emt 0:02:05]} 11. Bd3 {[%emt 0:02:32]} b5 {[%emt 0:02:28]} 12. e5 {[%emt 0:05:32]} Nd5 {[%emt 0:00:56]} 13. Bxe7 {[%emt 0:00:38]} Qxe7 {[%emt 0:01:48]} 14. Ne4 {[%emt 0:03:24]} Qb4 {[%emt 0:02:25]} 15. Nc5 {[%emt 0:04:29]} Be8 {[%emt 0:03:20]} 16. Rc2 {[%emt 0:06:16]} Nxd4 {[%emt 0:01:40]} 17. Nxd4 {[%emt 0:00:14]} Qxd4 {[%emt 0:00:10]} 18. Bxh7+ {[%emt 0:00:07]} Kxh7 {[%emt 0:00:22]} 19. Qxd4 {[%emt 0:00:05]} Rd8 {[%emt 0:02:10]} 20. Qh4+ {[%emt 0:00:16]} Kg8 {[%emt 0:00:12]} 21. Qxd8 {[%emt 0:00:12]} Bc6 {[%emt 0:00:26]} 22. Qh4 {[%emt 0:00:39]} a5 {[%emt 0:01:12]} 23. Ne4 {[%emt 0:00:34]} Nb4 {[%emt 0:00:25]} 24. Ng5 {[%emt 0:00:27]} Re8 {[%emt 0:00:28]} 25. Rc3 {[%emt 0:01:23]} Bd5 {[%emt 0:00:26]} 26. Rxc7 {[%emt 0:00:42]} Rd8 {[%emt 0:01:22]} 27. Qh7+ {[%emt 0:00:11]} Kf8 {[%emt 0:00:06] Check Result:?ev?} 28. Qh8# {[%emt 0:00:52]} 1-0

[Event "7th Leer Open-B 2024"]
[Site "Leer"]
[Date "2024.10.31"]
[Round "2.21"]
[White "Schenk, Michael"]
[Black "Anton Guijarro, David"]
[Result "0-1"]
[ECO "C36"]
[WhiteElo "1643"]
[BlackElo "2667"]
[Annotator "RC"]
[PlyCount "80"]
[EventDate "2024.10.14"]
[EventType "swiss"]
[EventCountry "GER"]
[SourceTitle "playchess.com"]
[Source "ChessBase"]
[SourceQuality "1"]
[TimeControl "40/5400+30:900+30"]

1. e4 {[%emt 0:00:04]} e5 {[%emt 0:00:03]} 2. f4 {[%emt 0:00:06]} exf4 {[%emt 0:00:33]} 3. Nf3 {[%emt 0:00:07]} d5 {[%emt 0:01:44]} 4. e5 {[%emt 0:01:46]} Bg4 {[%emt 0:01:20]} 5. d4 {[%emt 0:03:25]} Nc6 {[%emt 0:03:31]} 6. c3 {[%emt 0:01:58]} Bxf3 {[%emt 0:01:23]} 7. Qxf3 {[%emt 0:00:22]} Qh4+ {[%emt 0:01:55]} 8. Qf2 {[%emt 0:03:45]} Qxf2+ {[%emt 0:01:19]} 9. Kxf2 {[%emt 0:00:06]} g5 {[%emt 0:00:42]} 10. Bb5 {[%emt 0:03:20]} Nge7 {[%emt 0:00:42]} 11. Nd2 {[%emt 0:02:37]} a6 {[%emt 0:01:04]} 12. Bd3 {[%emt 0:03:03]} O-O-O {[%emt 0:01:52]} 13. b4 {[%emt 0:03:35]} Ng6 {[%emt 0:03:13]} 14. a4 {[%emt 0:03:06]} Nce7 {[%emt 0:01:00]} 15. Nb3 {[%emt 0:01:56]} Bg7 {[%emt 0:01:26]} 16. b5 {[%emt 0:02:14]} axb5 {[%emt 0:01:19]} 17. Bxb5 {[%emt 0:01:15]} c6 {[%emt 0:01:35]} 18. Bd3 {[%emt 0:01:23]} Kc7 {[%emt 0:01:36]} 19. Ba3 {[%emt 0:01:21]} b6 {[%emt 0:01:22]} 20. Rhb1 {[%emt 0:07:31]} Ra8 {[%emt 0:02:03]} 21. Bd6+ {[%emt 0:02:27]} Kd7 {[%emt 0:00:40]} 22. a5 {[%emt 0:01:20]} f6 {[%emt 0:09:12]} 23. axb6 {[%emt 0:01:22]} fxe5 {[%emt 0:00:50]} 24. Rxa8 {[%emt 0:07:26]} Rxa8 {[%emt 0:00:15]} 25. b7 {[%emt 0:00:11]} Ra2+ {[%emt 0:01:23]} 26. Kf1 {[%emt 0:00:24]} Kxd6 {[%emt 0:00:33]} 27. b8=Q+ {[%emt 0:00:26]} Ke6 {[%emt 0:00:39]} 28. Nc5+ {[%emt 0:00:58]} Kf7 {[%emt 0:00:30]} 29. dxe5 {[%emt 0:02:11]} Nxe5 {[%emt 0:00:33]} 30. Qb3 {[%emt 0:02:56]} Ra5 {[%emt 0:02:20]} 31. Ne4 {[%emt 0:05:04]} Nxd3 {[%emt 0:01:03]} 32. Nxg5+ {[%emt 0:02:37]} Kg6 {[%emt 0:01:27]} 33. Nf3 {[%emt 0:01:38]} Nf5 {[%emt 0:02:29]} 34. Ke2 {[%emt 0:04:15]} Nc5 {[%emt 0:01:20]} 35. Qc2 {[%emt 0:02:17]} Ne4 {[%emt 0:00:58]} 36. Rb3 {[%emt 0:12:39]} Ne3 {[%emt 0:05:44]} 37. Qd3 {[%emt 0:04:12]} Ra2+ {[%emt 0:01:12]} 38. Ke1 {[%emt 0:02:26]} Ra1+ {[%emt 0:01:35]} 39. Rb1 {[%emt 0:00:56]} Bxc3+ {[%emt 0:00:18]} 40. Qxc3 {[%emt 0:03:03]} Rxb1+ {[%emt 0:00:22]} 0-1

[Event "7th Leer Open-B 2024"]
[Site "Leer"]
[Date "2024.10.31"]
[Round "2.22"]
[White "Noennig, Nina"]
[Black "Knorr, Frank"]
[Result "0-1"]
[ECO "B07"]
[WhiteElo "1452"]
[BlackElo "1641"]
[Annotator "NA COMBH"]
[PlyCount "93"]
[EventDate "2024.10.14"]
[EventType "swiss"]
[EventCountry "GER"]
[SourceTitle "playchess.com"]
[Source "ChessBase"]
[SourceQuality "1"]
[TimeControl "40/5400+30:900+30"]

1. e4 {[%emt 0:00:02]} d6 {[%emt 0:00:10]} 2. d4 {[%emt 0:00:11]} Nf6 {[%emt 0:00:08]} 3. Nc3 {[%emt 0:00:12]} c6 {[%emt 0:00:11]} 4. Bd3 {[%emt 0:00:26]} Nbd7 {[%emt 0:00:19]} 5. Nf3 {[%emt 0:00:51]} e5 {[%emt 0:00:51]} 6. O-O {[%emt 0:03:05]} h6 {[%emt 0:00:15]} 7. Be3 {[%emt 0:01:27]} Be7 {[%emt 0:00:39]} 8. Qe2 {[%emt 0:01:49]} Qc7 {[%emt 0:00:34]} 9. Bc4 {[%emt 0:04:24]} b5 {[%emt 0:03:21]} 10. Bb3 {[%emt 0:00:49]} b4 {[%emt 0:03:27]} 11. Nd1 {[%emt 0:09:57]} Nxe4 {[%emt 0:00:25]} 12. Qc4 {[%emt 0:00:31]} d5 {[%emt 0:00:37]} 13. Qd3 {[%emt 0:01:35]} a5 {[%emt 0:02:58]} 14. a4 {[%emt 0:01:55]} Ba6 {[%emt 0:00:35]} 15. c4 {[%emt 0:01:37]} bxc3 {[%emt 0:01:00]} 16. Qc2 {[%emt 0:04:11]} cxb2 {[%emt 0:02:13]} 17. Nxb2 {[%emt 0:04:07]} Nef6 {[%emt 0:03:03]} 18. Rfe1 {[%emt 0:01:23]} O-O {[%emt 0:01:13]} 19. Bd2 {[%emt 0:03:19]} e4 {[%emt 0:01:10]} 20. Nh4 {[%emt 0:01:59]} Ng4 {[%emt 0:00:46]} 21. g3 {[%emt 0:01:30]} Bxh4 {[%emt 0:07:18]} 22. Bf4 {[%emt 0:02:43]} Qb6 {[%emt 0:04:22]} 23. gxh4 {[%emt 0:12:29]} Rac8 {[%emt 0:01:37]} 24. Qd1 {[%emt 0:01:11]} Ngf6 {[%emt 0:02:38]} 25. Bd6 {[%emt 0:07:01]} Rfe8 {[%emt 0:02:35]} 26. Rc1 {[%emt 0:04:00]} Re6 {[%emt 0:04:12]} 27. Bf4 {[%emt 0:01:55]} Nf8 {[%emt 0:05:33]} 28. h5 {[%emt 0:02:25]} N6h7 {[%emt 0:03:21]} 29. Rc3 {[%emt 0:01:28]} Rf6 {[%emt 0:00:53]} 30. Qd2 {[%emt 0:03:16]} Ne6 {[%emt 0:01:03]} 31. Be5 {[%emt 0:01:56]} Rf5 {[%emt 0:01:09]} 32. Rg3 {[%emt 0:00:31]} Nhg5 {[%emt 0:01:27]} 33. Bd1 {[%emt 0:05:25]} f6 {[%emt 0:06:19]} 34. Bg4 {[%emt 0:02:44]} Nf3+ {[%emt 0:03:27]} 35. Bxf3 {[%emt 0:01:11]} Rxf3 {[%emt 0:00:17]} 36. Rg6 {[%emt 0:04:53]} Ng5 {[%emt 0:03:47]} 37. Bg3 {[%emt 0:04:45]} Rxg3+ {[%emt 0:00:47]} 38. hxg3 {[%emt 0:03:02]} Nf3+ {[%emt 0:00:11]} 39. Kg2 {[%emt 0:00:22]} Nxd2 {[%emt 0:00:10]} 40. Nd1 {[%emt 0:01:39]} Qxd4 {[%emt 0:00:42]} 41. Ne3 {[%emt 0:16:14]} Nf3 {[%emt 0:16:19]} 42. Nf5 {[%emt 0:00:37]} Nxe1+ {[%emt 0:00:43]} 43. Kh3 {[%emt 0:00:44]} Qa7 {[%emt 0:02:18]} 44. Kh4 {[%emt 0:01:05]} Re8 {[%emt 0:01:29]} 45. Nxh6+ {[%emt 0:00:00]} Kf8 {[%emt 0:00:00]} 46. Nf5 {[%emt 0:00:00]} Nf3+ {[%emt 0:00:00] Check Result:-#5} 47. Kg4 {[%emt 0:00:00]} 0-1

[Event "7th Leer Open-B 2024"]
[Site "Leer"]
[Date "2024.10.31"]
[Round "2.32"]
[White "Kulgemeyer, Justus"]
[Black "Meyer, Frank"]
[Result "1-0"]
[ECO "D00"]
[WhiteElo "1566"]
[BlackElo "2038"]
[Annotator "RC"]
[PlyCount "105"]
[EventDate "2024.10.14"]
[EventType "swiss"]
[EventCountry "GER"]
[SourceTitle "playchess.com"]
[Source "ChessBase"]
[SourceQuality "1"]
[TimeControl "40/5400+30:900+30"]

1. d4 {[%emt 0:00:04]} d5 {[%emt 0:00:08]} 2. Nc3 {[%emt 0:00:12]} Nf6 {[%emt 0:00:10]} 3. Bf4 {[%emt 0:00:09]} a6 {[%emt 0:02:25]} 4. e3 {[%emt 0:00:06]} Nc6 {[%emt 0:00:15]} 5. Bd3 {[%emt 0:00:08]} Nb4 {[%emt 0:03:37]} 6. Be2 {[%emt 0:00:37]} Bf5 {[%emt 0:00:48]} 7. Rc1 {[%emt 0:00:09]} Ne4 {[%emt 0:05:19]} 8. a3 {[%emt 0:01:24]} Nxc3 {[%emt 0:00:45]} 9. bxc3 {[%emt 0:00:17]} Nc6 {[%emt 0:00:13]} 10. g4 {[%emt 0:00:10]} Bg6 {[%emt 0:02:12]} 11. h4 {[%emt 0:00:12]} h6 {[%emt 0:00:11]} 12. c4 dxc4 {[%emt 0:02:38]} 13. Bxc4 {[%emt 0:00:23]} Na5 {[%emt 0:04:36]} 14. Bd3 {[%emt 0:00:34]} Bxd3 {[%emt 0:01:38]} 15. Qxd3 {[%emt 0:00:14]} e6 {[%emt 0:02:49]} 16. f3 {[%emt 0:01:28]} b5 {[%emt 0:01:28]} 17. Qc3 {[%emt 0:01:53]} Nc4 {[%emt 0:00:09]} 18. a4 {[%emt 0:01:14]} c6 {[%emt 0:01:23]} 19. Ne2 {[%emt 0:01:01]} Ba3 {[%emt 0:05:31]} 20. Rb1 {[%emt 0:00:57]} Qd7 {[%emt 0:04:21]} 21. Kf2 {[%emt 0:00:52]} Rc8 {[%emt 0:07:36]} 22. e4 {[%emt 0:01:23]} O-O {[%emt 0:08:17]} 23. Ng3 {[%emt 0:01:09]} a5 {[%emt 0:02:29]} 24. g5 {[%emt 0:00:48]} Bb4 {[%emt 0:00:40]} 25. Qa1 {[%emt 0:00:31]} Bd2 {[%emt 0:04:45]} 26. Bxd2 {[%emt 0:00:36]} Nxd2 {[%emt 0:00:06]} 27. Rbd1 {[%emt 0:00:15]} Nc4 {[%emt 0:01:18]} 28. gxh6 {[%emt 0:00:20]} gxh6 {[%emt 0:00:38]} 29. Rhg1 {[%emt 0:00:32]} f6 {[%emt 0:06:38]} 30. Nh5+ {[%emt 0:00:32]} Kh8 {[%emt 0:00:37]} 31. Qc1 {[%emt 0:00:40]} Qh7 {[%emt 0:05:31]} 32. Rg7 {[%emt 0:00:23]} Qxg7 {[%emt 0:00:14]} 33. Nxg7 {[%emt 0:00:05]} Kxg7 {[%emt 0:00:08]} 34. Rg1+ {[%emt 0:02:24]} Kh7 {[%emt 0:00:42]} 35. Qf1 {[%emt 0:00:09]} Rg8 {[%emt 0:01:07]} 36. Qd3 {[%emt 0:01:03]} Rcd8 {[%emt 0:03:53]} 37. e5+ {[%emt 0:00:50]} f5 {[%emt 0:00:08]} 38. axb5 {[%emt 0:00:34]} cxb5 {[%emt 0:00:16]} 39. Rxg8 {[%emt 0:00:13]} Rxg8 {[%emt 0:00:54]} 40. Qb3 {[%emt 0:00:51]} Rb8 {[%emt 0:00:22]} 41. h5 {[%emt 0:15:14]} Kg7 {[%emt 0:19:10]} 42. f4 {[%emt 0:00:45]} Kf7 {[%emt 0:01:15]} 43. Qg3 {[%emt 0:00:51]} Rg8 {[%emt 0:02:37]} 44. Qf3 {[%emt 0:00:13]} Rb8 {[%emt 0:03:21]} 45. Qg2 {[%emt 0:00:12]} Ke7 {[%emt 0:00:27]} 46. Qg7+ {[%emt 0:00:14]} Kd8 {[%emt 0:14:45]} 47. Qxh6 {[%emt 1:26:09]} Kd7 {[%emt 0:00:00]} 48. Qg7+ {[%emt 0:00:00]} Kc6 {[%emt 0:00:00]} 49. h6 {[%emt 0:00:00]} a4 {[%emt 0:00:00]} 50. Qa7 {[%emt 0:00:00]} Rb7 {[%emt 0:00:00]} 51. Qc5+ {[%emt 0:00:00]} Kd7 {[%emt 0:00:00]} 52. h7 {[%emt 0:00:00]} Rb8 {[%emt 0:00:00]} 53. Qa7+ {[%emt 0:00:00]} 1-0